bitfinex/quotes_BTCUSD_20260101
["timestamp","ask_amount","ask_price","bid_price","bid_amount"]
[1767268344399,0.00035365,88027.0,88023.0,0.01136066]
[1767268344879,0.00035365,88027.0,88022.0,0.01136079]
[1767268345832,0.00035365,88027.0,88023.0,0.01136066]
[1767268346063,0.00035365,88027.0,88021.0,0.01136092]
[1767268346245,0.00035365,88027.0,88022.0,0.01136079]
[1767268346445,0.00035365,88027.0,88023.0,0.01136066]
[1767268346660,0.00035365,88027.0,88022.0,0.01136079]
[1767268346818,0.00035365,88027.0,88021.0,0.01136092]
[1767268348029,0.00035365,88027.0,88022.0,0.01136079]
[1767268348235,0.00035365,88027.0,88021.0,0.01136092]
[1767268348456,0.00035365,88027.0,88020.0,0.01136105]
[1767268348777,0.000546,88021.0,88020.0,0.01136105]
[1767268348969,0.00035365,88027.0,88022.0,0.01136079]
[1767268349116,0.00035365,88027.0,88021.0,0.01136092]
[1767268349765,0.00035365,88027.0,88023.0,0.01136066]
[1767268350179,0.00035365,88027.0,88022.0,0.01136079]
[1767268350351,0.00035365,88027.0,88021.0,0.01136092]
[1767268350716,0.00035365,88027.0,88019.0,0.01136118]
[1767268350870,0.000546,88021.0,88014.0,0.07953077]
[1767268351069,0.02455152,88025.0,88017.0,0.01136144]
[1767268351233,0.02455152,88025.0,88015.0,0.01136169]
[1767268351442,0.02455152,88025.0,88016.0,0.01136157]
[1767268351642,0.02455152,88025.0,88015.0,0.01136169]
[1767268351884,0.02455152,88025.0,88014.0,0.02272182]
[1767268352281,0.02455152,88025.0,88014.0,0.01136182]
[1767268353065,0.02455152,88025.0,88015.0,0.01136169]
[1767268353264,0.02455152,88025.0,88013.0,0.01136195]
[1767268353505,0.04681516,88024.0,88013.0,0.01136]
[1767268353684,0.12730021,88019.0,88013.0,0.01136]
[1767268354683,0.000546,88013.0,88011.0,0.03411186]
[1767268354881,0.000546,88013.0,88007.0,0.01136273]
[1767268355093,0.17411537,88019.0,88008.0,0.03411395]
[1767268355294,0.17411537,88019.0,88008.0,0.0113626]
[1767268355494,0.17411537,88019.0,88007.0,0.01136]
[1767268355825,0.04681516,88017.0,88007.0,0.03356795]
[1767268356140,0.04681516,88017.0,88006.0,0.01136]
[1767268358159,0.04681516,88017.0,88005.0,0.01150899]
[1767268358316,0.04681516,88017.0,88006.0,0.01136286]
[1767268358520,0.04681516,88017.0,88005.0,0.01150899]
[1767268358723,0.04681516,88017.0,88005.0,0.000146]
[1767268361895,0.01136337,88020.0,88005.0,0.01150899]
[1767268362046,0.13815021,88019.0,88017.0,0.000549]
[1767268362470,0.13815021,88019.0,88008.0,0.0113626]
[1767268362771,0.13815021,88019.0,88007.0,0.01136273]
[1767268362969,0.13815021,88019.0,88006.0,0.01136286]
[1767268363173,0.13815021,88019.0,88007.0,0.01136273]
[1767268364943,0.13815021,88019.0,88005.0,0.000146]
[1767268364944,0.0713691,88018.0,88005.0,0.000146]
[1767268365148,0.04681516,88018.0,88007.0,0.01136273]
[1767268365863,0.04681516,88018.0,88008.0,0.0113626]
[1767268366904,0.04681516,88018.0,88009.0,0.01136247]
[1767268367056,0.13815021,88019.0,88009.0,0.01136247]
[1767268368621,0.13815021,88019.0,88010.0,0.01136234]
[1767268368971,0.13815021,88019.0,88009.0,0.01136247]
[1767268369715,0.13815021,88019.0,88010.0,0.01136234]
[1767268370779,0.13815021,88019.0,88011.0,0.01136221]
[1767268371647,0.13815021,88019.0,88010.0,0.01136234]
[1767268372636,0.13815021,88019.0,88009.0,0.01136247]
[1767268372839,0.13815021,88019.0,88011.0,0.01136221]
[1767268373836,0.13815021,88019.0,88010.0,0.01136234]
[1767268374165,0.13815021,88019.0,88012.0,0.01136208]
[1767268374553,0.13815021,88019.0,88013.0,0.01136195]
[1767268375158,0.13815021,88019.0,88012.0,0.01136208]
[1767268376353,0.13815021,88019.0,88015.0,0.01136169]
[1767268376978,0.13815021,88019.0,88016.0,0.01136157]
[1767268377766,0.12675021,88019.0,88016.0,0.01136157]
[1767268382095,0.01136182,88024.0,88019.0,0.01191018]
[1767268382295,0.00035335,88027.0,88025.0,0.05680204]
[1767268382498,0.0004,88029.0,88026.0,0.01136027]
[1767268382704,0.03104659,88036.0,88028.0,0.01136002]
[1767268382902,0.0004,88037.0,88028.0,0.01136002]
[1767268382903,0.0004,88037.0,88035.0,0.05679559]
[1767268382904,1e-08,88037.0,88035.0,0.05679559]
[1767268383089,1e-08,88037.0,88036.0,0.0114]
[1767268384701,1e-08,88037.0,88036.0,0.01594721]
[1767268386567,0.02829507,88040.0,88037.0,0.0567943]
[1767268386905,0.02829507,88040.0,88037.0,0.06815316]
[1767268387107,0.02829507,88040.0,88037.0,0.01135886]
[1767268387523,0.02829507,88040.0,88038.0,0.0114]
[1767268387940,0.02829507,88040.0,88039.0,0.05639301]
[1767268388142,0.02829507,88040.0,88038.0,0.0114]
[1767268389144,0.02829507,88040.0,88038.0,0.06819332]
[1767268389353,0.02829507,88040.0,88038.0,0.0114]
[1767268389882,0.02774607,88040.0,88038.0,0.0114]
[1767268390688,0.02774607,88040.0,88037.0,0.01000758]
[1767268390865,0.02774607,88040.0,88038.0,0.0114]
[1767268396400,0.02774607,88040.0,88038.0,0.010851]
[1767268397220,0.02774607,88040.0,88036.0,0.01135898]
[1767268397397,0.02774607,88040.0,88037.0,0.0114]
[1767268397616,0.02774607,88040.0,88037.0,0.02275886]
[1767268397816,0.02774607,88040.0,88037.0,0.0114]
[1767268398045,0.02774607,88040.0,88037.0,0.02275886]
[1767268398211,0.02774607,88040.0,88037.0,0.0114]
[1767268398413,0.02774607,88040.0,88037.0,0.02275886]
[1767268399152,0.02774607,88040.0,88037.0,0.0114]
[1767268399501,0.02774607,88040.0,88037.0,0.02275886]
[1767268399742,0.04711427,88037.0,88034.0,0.02275924]
[1767268399957,0.04656427,88037.0,88034.0,0.0114]
[1767268401940,0.04656427,88037.0,88035.0,0.0114]
[1767268402344,0.04656427,88037.0,88035.0,0.01085]
[1767268402615,0.04656427,88037.0,88030.0,0.01135976]
[1767268402845,0.04656427,88037.0,88033.0,0.0114]
[1767268403369,0.53977082,88040.0,88033.0,0.0114]
[1767268403571,0.02774607,88040.0,88033.0,0.0114]
[1767268405508,0.02774607,88040.0,88029.0,0.01135989]
[1767268405708,0.02774607,88040.0,88030.0,0.0114]
[1767268406094,0.02774607,88040.0,88030.0,0.0113432]
[1767268406503,0.07515476,88040.0,88030.0,0.0113432]
[1767268407441,0.58717951,88040.0,88030.0,0.0113432]
[1767268407651,0.58717951,88040.0,88028.0,0.01146014]
[1767268407849,0.53977082,88040.0,88028.0,0.00010012]
[1767268408047,0.04740869,88039.0,88029.0,0.0114]
[1767268409235,0.04740869,88039.0,88028.0,0.00010012]
[1767268409437,0.04740869,88037.0,88028.0,0.01150012]
[1767268411890,0.02455236,88036.0,88028.0,0.01150012]
[1767268412191,0.12730021,88031.0,88027.0,0.0114]
[1767268412596,0.04740869,88030.0,88019.0,0.01136118]
[1767268412737,0.12730021,88031.0,88021.0,0.0114]
[1767268412937,0.12730021,88031.0,88022.0,0.01136079]
[1767268413180,0.12675121,88031.0,88022.0,0.01136079]
[1767268413392,0.12675121,88031.0,88021.0,0.02276092]
[1767268413564,0.12675121,88031.0,88022.0,0.01136079]
[1767268413971,0.12675121,88031.0,88021.0,0.02276092]
[1767268414369,0.12675121,88031.0,88021.0,0.0114]
[1767268415783,0.12675121,88031.0,88021.0,0.02276092]
[1767268415982,0.12675121,88031.0,88021.0,0.0114]
[1767268416387,0.12665121,88031.0,88021.0,0.0114]
[1767268418331,0.12665121,88031.0,88021.0,0.02276092]
[1767268418644,0.12665121,88031.0,88021.0,0.0114]
[1767268419501,0.12665121,88031.0,88022.0,0.01136079]
[1767268419696,0.12665121,88031.0,88021.0,0.02276092]
[1767268421109,0.12665121,88031.0,88021.0,0.0114]
[1767268426071,0.63867596,88031.0,88021.0,0.0114]
[1767268426271,0.68608465,88031.0,88022.0,0.0114]
[1767268427034,0.04740869,88030.0,88022.0,0.0114]
[1767268429513,0.04740869,88030.0,88023.0,0.0114]
[1767268430040,0.04740869,88030.0,88019.0,4.414e-05]
[1767268430241,0.55943344,88030.0,88020.0,0.0114]
[1767268431140,0.55943344,88030.0,88020.0,0.02276105]
[1767268431296,0.55943344,88030.0,88021.0,0.0114]
[1767268433212,0.04544944,88029.0,88021.0,0.0114]
[1767268434513,0.04544944,88029.0,88021.0,0.0067288]
[1767268435155,0.04544944,88029.0,88019.0,4.414e-05]
[1767268435377,0.04544944,88029.0,88020.0,0.02276105]
[1767268435496,0.04544944,88029.0,88020.0,0.0114]
[1767268436125,0.04544944,88029.0,88020.0,0.02276105]
[1767268436455,0.04544944,88029.0,88020.0,0.0114]
[1767268440888,0.04544944,88029.0,88019.0,4.414e-05]
[1767268441091,0.04544944,88029.0,88021.0,0.0114]
[1767268442396,0.03062562,88037.0,88021.0,0.0114]
[1767268442611,0.12730021,88029.0,88021.0,0.0114]
[1767268445442,0.02458253,88028.0,88021.0,0.0114]
[1767268449350,0.0106698,88027.0,88021.0,0.0114]
[1767268449566,0.02458253,88028.0,88021.0,0.0114]
[1767268449771,0.01066995,88027.0,88021.0,0.0114]
[1767268449969,0.02458253,88028.0,88021.0,0.0114]
[1767268450205,0.01066995,88027.0,88021.0,0.0114]
[1767268450421,0.02458253,88028.0,88021.0,0.0114]
[1767268450599,0.01067015,88027.0,88021.0,0.0114]
[1767268450756,0.02458253,88028.0,88021.0,0.0114]
[1767268451051,0.01067015,88027.0,88021.0,0.0114]
[1767268451255,0.02458253,88028.0,88021.0,0.0114]
[1767268451480,0.01067042,88027.0,88021.0,0.0114]
[1767268451650,0.02458253,88028.0,88021.0,0.0114]
[1767268451856,0.01067042,88027.0,88021.0,0.0114]
[1767268452086,0.02458253,88028.0,88021.0,0.0114]
[1767268452287,0.01067042,88027.0,88021.0,0.0114]
[1767268452492,0.02458253,88028.0,88021.0,0.0114]
[1767268452789,0.01067094,88027.0,88021.0,0.0114]
[1767268453005,0.02458253,88028.0,88021.0,0.0114]
[1767268453172,0.01067094,88027.0,88021.0,0.0114]
[1767268453371,0.02458253,88028.0,88021.0,0.0114]
[1767268453614,0.01067094,88027.0,88021.0,0.0114]
[1767268453814,0.02458253,88028.0,88021.0,0.0114]
[1767268454017,0.01067094,88027.0,88021.0,0.0114]
[1767268454333,0.02458253,88028.0,88021.0,0.0114]
[1767268454509,0.01067095,88027.0,88021.0,0.0114]
[1767268454706,0.02458253,88028.0,88021.0,0.0114]
[1767268454890,0.01067095,88027.0,88021.0,0.0114]
[1767268455086,0.02458253,88028.0,88021.0,0.0114]
[1767268455330,0.01067095,88027.0,88021.0,0.0114]
[1767268455533,0.02458253,88028.0,88021.0,0.0114]
[1767268455731,0.01067095,88027.0,88021.0,0.0114]
[1767268455905,0.02458253,88028.0,88021.0,0.0114]
[1767268456112,0.01067095,88027.0,88021.0,0.0114]
[1767268456310,0.02458253,88028.0,88021.0,0.0114]
[1767268456509,0.01067096,88027.0,88021.0,0.0114]
[1767268456682,0.02458253,88028.0,88021.0,0.0114]
[1767268456886,0.01067096,88027.0,88021.0,0.0114]
[1767268457082,0.02458253,88028.0,88021.0,0.0114]
[1767268457289,0.01067096,88027.0,88020.0,0.0114]
[1767268457515,6.417e-05,88027.0,88020.0,0.0114]
[1767268457909,6.417e-05,88027.0,88020.0,0.00543848]
[1767268458313,6.417e-05,88027.0,88019.0,0.0114]
[1767268458981,6.417e-05,88027.0,88019.0,0.02276118]
[1767268459210,6.417e-05,88027.0,88019.0,0.0114]
[1767268460085,6.417e-05,88027.0,88019.0,0.02276118]
[1767268460407,6.417e-05,88027.0,88019.0,0.0114]
[1767268460703,6.417e-05,88027.0,88019.0,0.02276118]
[1767268464357,6.417e-05,88027.0,88019.0,0.0114]
[1767268464578,6.417e-05,88027.0,88019.0,0.02276118]
[1767268466170,6.417e-05,88027.0,88019.0,0.0114]
[1767268466387,6.417e-05,88027.0,88019.0,0.02276118]
[1767268466594,6.417e-05,88027.0,88019.0,0.0114]
[1767268466758,6.417e-05,88027.0,88019.0,0.02276118]
[1767268468005,6.417e-05,88027.0,88019.0,0.0114]
[1767268468371,6.417e-05,88027.0,88019.0,0.02276118]
[1767268468560,6.417e-05,88027.0,88019.0,0.0114]
[1767268468915,6.417e-05,88027.0,88019.0,0.02276118]
[1767268469078,6.417e-05,88027.0,88019.0,0.0114]
[1767268469719,6.417e-05,88027.0,88019.0,0.02276118]
[1767268470527,6.417e-05,88027.0,88019.0,0.0114]
[1767268470931,6.417e-05,88027.0,88019.0,0.02276118]
[1767268471751,6.417e-05,88027.0,88019.0,0.0114]
[1767268472345,6.417e-05,88027.0,88019.0,0.02276118]
[1767268472545,6.417e-05,88027.0,88019.0,0.0114]
[1767268474057,0.01067124,88026.0,88019.0,0.0114]
[1767268474294,6.417e-05,88027.0,88019.0,0.01134319]
[1767268474498,0.01067067,88026.0,88019.0,0.01134319]
[1767268474694,6.417e-05,88027.0,88019.0,0.01134319]
[1767268474895,0.01067067,88026.0,88019.0,0.01134319]
[1767268475092,6.417e-05,88027.0,88019.0,0.01134319]
[1767268475328,0.01067067,88026.0,88019.0,0.01134319]
[1767268475508,6.417e-05,88027.0,88019.0,0.01134319]
[1767268475799,0.01067011,88026.0,88019.0,0.01134319]
[1767268476000,6.417e-05,88027.0,88019.0,0.01134319]
[1767268476204,0.01067012,88026.0,88019.0,0.01076753]
[1767268476428,6.417e-05,88027.0,88019.0,0.01076753]
[1767268476621,0.01066972,88026.0,88019.0,0.01076753]
[1767268476909,6.417e-05,88027.0,88019.0,0.01076753]
[1767268477230,0.01066972,88026.0,88019.0,0.01076753]
[1767268477403,6.417e-05,88027.0,88019.0,0.01076753]
[1767268477603,0.01066942,88026.0,88019.0,0.01076753]
[1767268477768,6.417e-05,88027.0,88019.0,0.01076753]
[1767268477968,0.01066942,88026.0,88019.0,0.01076753]
[1767268478206,6.417e-05,88027.0,88019.0,0.01076753]
[1767268478401,0.01066917,88026.0,88019.0,0.01076753]
[1767268478607,6.417e-05,88027.0,88019.0,0.01076753]
[1767268478821,0.01066917,88026.0,88019.0,0.01076753]
[1767268479031,6.417e-05,88027.0,88019.0,0.01076753]
[1767268479363,0.01066917,88026.0,88019.0,0.01076753]
[1767268479568,6.417e-05,88027.0,88019.0,0.01076753]
[1767268479843,0.01066897,88026.0,88019.0,0.01076753]
[1767268480041,6.417e-05,88027.0,88019.0,0.01076753]
[1767268480277,0.01066897,88026.0,88019.0,0.01076753]
[1767268480400,6.417e-05,88027.0,88019.0,0.01076753]
[1767268484158,6.417e-05,88027.0,88017.0,0.01136144]
[1767268484430,6.417e-05,88027.0,88018.0,0.01136]
[1767268484602,0.04842494,88026.0,88018.0,0.01136]
[1767268486574,0.04842494,88026.0,88018.0,0.00368089]
[1767268490375,0.01066822,88025.0,88018.0,0.00368089]
[1767268490579,0.04842494,88026.0,88018.0,0.00368089]
[1767268490797,0.01066821,88025.0,88018.0,0.0150422]
[1767268491096,0.04842494,88026.0,88018.0,0.0150422]
[1767268491326,0.01066823,88025.0,88018.0,0.0150422]
[1767268491532,0.04842494,88026.0,88018.0,0.00368089]
[1767268491734,0.04842494,88026.0,88018.0,0.0150422]
[1767268492999,0.04842494,88026.0,88018.0,0.00368089]
[1767268493210,0.04842494,88026.0,88019.0,0.01136118]
[1767268493432,0.04842494,88026.0,88018.0,0.0150422]
[1767268494527,6.417e-05,88027.0,88018.0,0.0150422]
[1767268494747,0.01066841,88026.0,88018.0,0.0150422]
[1767268494968,6.417e-05,88027.0,88018.0,0.0150422]
[1767268495189,0.01066841,88026.0,88018.0,0.0150422]
[1767268495416,0.01066841,88025.0,88018.0,0.0150422]
[1767268495634,6.417e-05,88027.0,88018.0,0.0150422]
[1767268495854,0.01066851,88026.0,88018.0,0.00368089]
[1767268496080,0.01066851,88025.0,88017.0,0.01136144]
[1767268496249,6.417e-05,88027.0,88017.0,0.01136144]
[1767268496547,0.01066863,88026.0,88016.0,0.02272157]
[1767268496750,0.01066863,88025.0,88018.0,0.01136131]
[1767268497048,6.417e-05,88027.0,88018.0,0.01136131]
[1767268497270,0.01066863,88026.0,88018.0,0.01136131]
[1767268497483,0.01066863,88025.0,88019.0,0.01136118]
[1767268497772,6.417e-05,88027.0,88019.0,0.01136118]
[1767268497978,0.01066878,88026.0,88019.0,0.01136118]
[1767268498134,0.01066878,88025.0,88019.0,0.01136118]
[1767268498348,6.417e-05,88027.0,88019.0,0.01136118]
[1767268498570,0.01066895,88026.0,88018.0,0.01136131]
[1767268498773,0.01066895,88025.0,88019.0,0.01136118]
[1767268498977,6.417e-05,88027.0,88017.0,0.01136144]
[1767268499135,0.01066896,88026.0,88017.0,0.01136144]
[1767268499337,0.01066896,88025.0,88017.0,0.01136144]
[1767268499538,6.417e-05,88027.0,88016.0,0.02272157]
[1767268499772,0.01066916,88026.0,88016.0,0.02272157]
[1767268499935,0.01066916,88025.0,88018.0,0.01136131]
[1767268500137,6.417e-05,88027.0,88018.0,0.01136131]
[1767268500362,0.01066939,88026.0,88018.0,0.01136131]
[1767268500559,0.01066939,88025.0,88018.0,0.01136131]
[1767268500724,6.417e-05,88027.0,88018.0,0.01136131]
[1767268501087,0.01066939,88026.0,88018.0,0.01136131]
[1767268501226,0.01066939,88025.0,88019.0,0.01136118]
[1767268501431,6.417e-05,88027.0,88019.0,0.01136118]
[1767268501631,6.417e-05,88027.0,88018.0,0.01136131]
[1767268501632,0.0106697,88026.0,88018.0,0.01136131]
[1767268501871,0.0106697,88025.0,88016.0,0.02272157]
[1767268502067,6.417e-05,88027.0,88016.0,0.02272157]
[1767268502270,0.0106697,88026.0,88016.0,0.02272157]
[1767268502482,0.0106697,88025.0,88016.0,0.02272157]
[1767268502641,6.417e-05,88027.0,88016.0,0.02272157]
[1767268502842,0.01067014,88026.0,88018.0,0.01136131]
[1767268503224,0.01067014,88025.0,88018.0,0.01136131]
[1767268503349,6.417e-05,88027.0,88016.0,0.02272157]
[1767268503549,0.01067089,88026.0,88016.0,0.01136]
[1767268503749,0.01067089,88025.0,88016.0,0.02272157]
[1767268503945,6.417e-05,88027.0,88016.0,0.01136]
[1767268504148,0.01067089,88026.0,88017.0,0.01136144]
[1767268504350,0.01067089,88025.0,88017.0,0.01136144]
[1767268504597,6.417e-05,88027.0,88017.0,0.01136144]
[1767268504802,0.0106711,88026.0,88018.0,0.01136131]
[1767268505002,0.0106711,88025.0,88018.0,0.01136131]
[1767268505202,6.417e-05,88027.0,88018.0,0.01136131]
[1767268505402,0.01067111,88026.0,88018.0,0.01136131]
[1767268505631,0.01067111,88025.0,88017.0,0.01136144]
[1767268505809,6.417e-05,88027.0,88017.0,0.01136144]
[1767268505969,0.01067111,88026.0,88018.0,0.01136131]
[1767268506168,0.01067111,88025.0,88018.0,0.01136131]
[1767268506367,6.417e-05,88027.0,88018.0,0.01136131]
[1767268506607,0.01067111,88026.0,88017.0,0.01136144]
[1767268506784,0.01067111,88025.0,88018.0,0.01136131]
[1767268506993,6.417e-05,88027.0,88016.0,0.02272157]
[1767268507192,0.01067111,88026.0,88017.0,0.01136144]
[1767268507403,0.01067111,88025.0,88017.0,0.01136144]
[1767268507572,6.417e-05,88027.0,88017.0,0.01136144]
[1767268507767,0.01067111,88026.0,88017.0,0.01136144]
[1767268507967,0.01067111,88025.0,88016.0,0.01136157]
[1767268508174,0.01067126,88024.0,88016.0,0.01136]
[1767268508424,0.07292648,88025.0,88016.0,0.01136]
[1767268508608,0.0106707,88024.0,88016.0,0.01136]
[1767268508874,0.0106707,88023.0,88016.0,0.01136]
[1767268509115,0.04834648,88025.0,88016.0,0.01136]
[1767268509287,0.01067069,88024.0,88016.0,0.01136]
[1767268509492,0.04834648,88025.0,88016.0,0.01136]
[1767268509715,0.01067035,88024.0,88016.0,0.01136]
[1767268509944,0.04834648,88025.0,88016.0,0.01136]
[1767268510147,0.08360143,88024.0,88014.0,0.0001463]
[1767268510279,0.51229678,88026.0,88014.0,0.0001463]
[1767268510280,0.000549,88016.0,88014.0,0.0115063]
[1767268510833,0.04834648,88023.0,88015.0,0.01136169]
[1767268511042,0.04834648,88023.0,88014.0,0.02286812]
[1767268511362,0.04834648,88023.0,88015.0,0.01136169]
[1767268511497,0.04834648,88023.0,88014.0,0.02286812]
[1767268512198,0.04834648,88023.0,88015.0,0.01136169]
[1767268514933,0.04834648,88023.0,88014.0,0.0001463]
[1767268515124,0.04834648,88023.0,88009.0,0.02296247]
[1767268515332,0.04834648,88023.0,88010.0,0.01136234]
[1767268515497,0.04834648,88023.0,88012.0,0.01136208]
[1767268517450,0.04834648,88023.0,88010.0,0.01136234]
[1767268517653,0.04834648,88023.0,88013.0,0.01136195]
[1767268517874,0.04834648,88023.0,88012.0,0.01136208]
[1767268518182,0.04834648,88023.0,88011.0,0.01136221]
[1767268518413,0.04834648,88023.0,88012.0,0.01136208]
[1767268518595,0.04834648,88023.0,88011.0,0.01136221]
[1767268518795,0.04834648,88023.0,88012.0,0.01136208]
[1767268519897,0.04834648,88023.0,88013.0,0.01136195]
[1767268522083,0.04834648,88023.0,88012.0,0.01136208]
[1767268523810,0.12730021,88015.0,88009.0,0.01156247]
[1767268524016,0.12730021,88015.0,88010.0,0.01136234]
[1767268524376,0.12730021,88015.0,88011.0,0.01136221]
[1767268524595,0.12730021,88015.0,88010.0,0.01136234]
[1767268525718,0.12730021,88015.0,88010.0,0.06817372]
[1767268525897,0.12730021,88015.0,88012.0,0.01136208]
[1767268529228,0.12730021,88015.0,88012.0,0.06817233]
[1767268529435,0.12675021,88015.0,88012.0,0.06817233]
[1767268529718,0.12675021,88015.0,88012.0,0.01136208]
[1767268532752,0.04834648,88023.0,88014.0,0.01136182]
[1767268533171,0.04834648,88023.0,88013.0,0.01136195]
[1767268533342,0.04834648,88023.0,88014.0,0.01136182]
[1767268534191,0.12730021,88015.0,88014.0,0.01136182]
[1767268535261,0.12191257,88015.0,88014.0,0.01136182]
[1767268545374,0.000549,88014.0,88013.0,0.01136195]
[1767268545960,0.12191257,88015.0,88013.0,0.01136195]
[1767268549052,0.12191257,88015.0,88013.0,0.06817114]
[1767268551069,0.04834648,88023.0,88015.0,0.01136169]
[1767268551271,0.000549,88015.0,88012.0,0.06817205]
[1767268551607,0.04834648,88023.0,88013.0,0.01136195]
[1767268551781,0.01067155,88022.0,88013.0,0.01136195]
[1767268551989,0.04834648,88023.0,88013.0,0.01136195]
[1767268552189,0.01067155,88022.0,88013.0,0.01136195]
[1767268552428,0.000549,88013.0,88012.0,0.01136208]
[1767268552878,0.04834648,88023.0,88013.0,0.01136195]
[1767268553073,0.01067155,88022.0,88013.0,0.01136195]
[1767268553250,0.04834648,88023.0,88014.0,0.01136182]
[1767268553454,0.000549,88014.0,88013.0,0.01136195]
[1767268553815,0.04834648,88023.0,88013.0,0.01136195]
[1767268554031,0.01067154,88022.0,88013.0,0.01136195]
[1767268554232,0.04834648,88023.0,88013.0,0.01136195]
[1767268554434,0.01067156,88022.0,88013.0,0.01136195]
[1767268554673,0.04834648,88023.0,88013.0,0.01136195]
[1767268554830,0.01067155,88022.0,88013.0,0.01136195]
[1767268555046,0.04834648,88023.0,88013.0,0.01136195]
[1767268555385,0.04834648,88023.0,88014.0,0.01136182]
[1767268555386,0.01067155,88022.0,88014.0,0.01136182]
[1767268555681,0.04834648,88023.0,88014.0,0.01136182]
[1767268555882,0.01067158,88022.0,88014.0,0.01136182]
[1767268556185,0.04834648,88023.0,88014.0,0.01136182]
[1767268556383,0.01067158,88022.0,88015.0,0.01136169]
[1767268556614,0.04834648,88023.0,88015.0,0.01136169]
[1767268556744,0.01067159,88022.0,88015.0,0.01136169]
[1767268556945,0.04834648,88023.0,88015.0,0.01136169]
[1767268557188,0.01067159,88022.0,88015.0,0.01136169]
[1767268557523,0.04834648,88023.0,88015.0,0.01136169]
[1767268557750,0.01067159,88022.0,88015.0,0.01136169]
[1767268557923,0.04834648,88023.0,88015.0,0.01136169]
[1767268558120,0.01067159,88022.0,88013.0,0.01136195]
[1767268558302,0.04834648,88023.0,88013.0,0.01136195]
[1767268558501,0.01067159,88022.0,88014.0,0.01136182]
[1767268558714,0.04834648,88023.0,88013.0,0.01136195]
[1767268559008,0.01067159,88022.0,88013.0,0.01136195]
[1767268559325,0.04834648,88023.0,88013.0,0.01136195]
[1767268559484,0.0106716,88022.0,88013.0,0.01136195]
[1767268559690,0.04834648,88023.0,88013.0,0.01136195]
[1767268560029,0.0106716,88022.0,88013.0,0.01136195]
[1767268560240,0.04834648,88023.0,88014.0,0.01136182]
[1767268560434,0.01067161,88022.0,88014.0,0.01136182]
[1767268560608,0.04834648,88023.0,88014.0,0.01136182]
[1767268560807,0.01067161,88022.0,88014.0,0.01136182]
[1767268561009,0.04834648,88023.0,88014.0,0.01136182]
[1767268561245,0.01067161,88022.0,88014.0,0.01136182]
[1767268561450,0.04834648,88023.0,88014.0,0.01136182]
[1767268561653,0.01067161,88022.0,88014.0,0.01136182]
[1767268561863,0.04834648,88023.0,88015.0,0.01136169]
[1767268562030,0.01067161,88022.0,88014.0,0.06817089]
[1767268562246,0.04834648,88023.0,88016.0,0.01136157]
[1767268562442,0.01067162,88022.0,88015.0,0.01136169]
[1767268562627,0.04834648,88023.0,88015.0,0.01136169]
[1767268563053,0.04834648,88023.0,88014.0,0.01136182]
[1767268564121,0.04834648,88023.0,88015.0,0.01136169]
[1767268565539,0.04834648,88023.0,88014.0,0.01136182]
[1767268565979,0.04834648,88023.0,88015.0,0.01136169]
[1767268566636,0.04834648,88023.0,88016.0,0.01136157]
[1767268566862,0.04834648,88023.0,88015.0,0.01136169]
[1767268569769,0.04834648,88023.0,88014.0,0.01136182]
[1767268569979,0.04834648,88023.0,88015.0,0.01136169]
[1767268570180,0.04834648,88023.0,88014.0,0.01136182]
[1767268571498,0.04834648,88023.0,88015.0,0.01136169]
[1767268573741,0.04834648,88023.0,88014.0,0.01136182]
[1767268574141,0.04834648,88023.0,88015.0,0.01136169]
[1767268574544,0.04834648,88023.0,88014.0,0.01136182]
[1767268574753,0.04834648,88023.0,88015.0,0.01136169]
[1767268576365,0.04834648,88023.0,88014.0,0.01136182]
[1767268576907,0.04834648,88023.0,88015.0,0.01136169]
[1767268578527,0.04834648,88023.0,88015.0,0.01136195]
[1767268582589,0.04834648,88023.0,88015.0,0.01026295]
[1767268582792,0.04834648,88023.0,88011.0,0.01136221]
[1767268583259,0.01136,88025.0,88012.0,0.01136208]
[1767268583411,0.03525922,88024.0,88013.0,0.01136195]
[1767268583619,0.01067169,88023.0,88013.0,0.01136195]
[1767268583840,0.02458753,88024.0,88013.0,0.01136195]
[1767268584089,0.01067169,88023.0,88013.0,0.04547679]
[1767268584288,0.02458753,88024.0,88013.0,0.04547679]
[1767268584484,0.01067169,88023.0,88012.0,0.01136208]
[1767268584691,0.02458753,88024.0,88013.0,0.01136195]
[1767268584981,0.01067169,88023.0,88014.0,0.02458753]
[1767268585305,0.02458753,88024.0,88014.0,0.02458753]
[1767268585483,0.0106717,88023.0,88014.0,0.02458753]
[1767268585668,0.02458753,88024.0,88014.0,0.02458753]
[1767268585873,0.0106717,88023.0,88014.0,0.02458753]
[1767268586037,0.02458753,88024.0,88014.0,0.02458753]
[1767268586238,0.0106717,88023.0,88014.0,0.02458753]
[1767268586536,0.02458753,88024.0,88014.0,0.02458753]
[1767268586736,0.0106717,88023.0,88014.0,0.02458753]
[1767268586945,0.02458753,88024.0,88014.0,0.02458753]
[1767268587149,0.0106717,88023.0,88014.0,0.02458753]
[1767268587351,0.02458753,88024.0,88014.0,0.02458753]
[1767268587574,0.0106717,88023.0,88014.0,0.02458753]
[1767268587788,0.02458753,88024.0,88014.0,0.02458753]
[1767268587990,0.0106717,88023.0,88014.0,0.02458753]
[1767268588308,0.02458753,88024.0,88014.0,0.02458753]
[1767268588508,0.01067171,88023.0,88014.0,0.02458753]
[1767268588808,0.02458753,88024.0,88014.0,0.02458753]
[1767268588964,0.01067171,88023.0,88014.0,0.02458753]
[1767268589180,0.02458753,88024.0,88014.0,0.02458753]
[1767268589419,0.01067171,88023.0,88014.0,0.02458753]
[1767268589721,0.02458753,88024.0,88014.0,0.02458753]
[1767268589866,0.01067171,88023.0,88014.0,0.02458753]
[1767268590068,0.02458753,88024.0,88014.0,0.02458753]
[1767268590268,0.01067171,88023.0,88014.0,0.02458753]
[1767268590471,0.02458753,88024.0,88014.0,0.02458753]
[1767268590679,0.01067171,88023.0,88014.0,0.02458753]
[1767268590902,0.02458753,88024.0,88014.0,0.03594935]
[1767268591256,0.01067171,88023.0,88014.0,0.02458753]
[1767268591432,0.02458753,88024.0,88014.0,0.02458753]
[1767268591669,0.01067172,88023.0,88014.0,0.02458753]
[1767268591867,0.02458753,88024.0,88014.0,0.02458753]
[1767268592021,0.01067172,88023.0,88014.0,0.02458753]
[1767268592219,0.02458753,88024.0,88014.0,0.02458753]
[1767268592423,0.01067172,88023.0,88014.0,0.02458753]
[1767268592627,0.02458753,88024.0,88014.0,0.02458753]
[1767268592825,0.01067172,88023.0,88014.0,0.02458753]
[1767268593027,0.02458753,88024.0,88014.0,0.02458753]
[1767268593258,0.01067172,88023.0,88014.0,0.02458753]
[1767268593462,0.02458753,88024.0,88014.0,0.02458753]
[1767268593634,0.01067173,88023.0,88014.0,0.02458753]
[1767268593831,0.02458753,88024.0,88014.0,0.02458753]
[1767268594034,0.01067173,88023.0,88014.0,0.02458753]
[1767268594248,0.02458753,88024.0,88014.0,0.03594935]
[1767268594423,0.01067173,88023.0,88014.0,0.02458753]
[1767268594622,0.02458753,88024.0,88014.0,0.02458753]
[1767268594823,0.01067173,88023.0,88014.0,0.02458753]